Cogmind - Beta 11.1 @@@ ROGUE MODE // 2022.05.15 @ 15:42:50 Player: Sara Result: Destroyed by S-10 Pest with Light Assault Rifle Performance ------------- Evolutions (0) 0 Regions Visited (4) 800 Robots Destroyed (1) 5 Value Destroyed (34) 34 Prototype IDs (23) 460 Alien Tech Used (0) 0 Bonus (300) 300 TOTAL SCORE: 1599 Bonus ------- Aligned with FarCom 300 Cogmind --------- Core Integrity 0/250 Matter 300/300 Energy 99/100 System Corruption 0% Temperature Cool (0) Movement Core (50) Location -9/Mines Parts ------- > --- POWER (1) -------- (None) > --- PROPULSION (2) --- (None) > --- UTILITY (2) ------ Visual Processing Unit > --- WEAPON (2) ------- Heavy Assault Rifle > --- INVENTORY (5) ---- Weight Redist. System Sensor Array Hardened Light Armor Plating Field Lobotomy Kit (5) Peak State ------------ > --- POWER ------------ (None) > --- PROPULSION ------- (None) > --- UTILITY ---------- Visual Processing Unit Seismic Detector > --- WEAPON ----------- Light Assault Rifle Light Assault Rifle > --- INVENTORY -------- Weight Redist. System Sensor Array Hardened Light Armor Plating Heavy Assault Rifle Field Lobotomy Kit [Rating: 6] Favorites ----------- Power None Propulsion None Utility Visual Processing Unit Device Seismic Detector Processor Visual Processing Unit Weapon Light Assault Rifle Ballistic Gun Light Assault Rifle Build | -11 -10 -10 -10 -9 ------- Run | Scr Mat Min Exi Min Slots Evolved . | . . . . . Power . | . . . . . Propulsion . | . . . . . Utility . | . . . . . Weapon . | . . . . . Parts Attached 5 | 2 2 . . 1 Power . | . . . . . Engine . | . . . . . Core . | . . . . . Reactor . | . . . . . Propulsion . | . . . . . Treads . | . . . . . Leg . | . . . . . Wheel . | . . . . . Hover . | . . . . . Flight . | . . . . . Utility 2 | . 2 . . . Device 1 | . 1 . . . Storage . | . . . . . Processor 1 | . 1 . . . Hackware . | . . . . . Protection . | . . . . . Artifact . | . . . . . Weapon 3 | 2 . . . 1 Energy Gun . | . . . . . Energy Cannon . | . . . . . Ballistic Gun 3 | 2 . . . 1 Ballistic Cannon . | . . . . . Launcher . | . . . . . Special Weapon . | . . . . . Impact Weapon . | . . . . . Slashing Weapon . | . . . . . Piercing Weapon . | . . . . . Special Melee Weapon . | . . . . . Unidentified Prototypes . | . . . . . Parts Lost 3 | . . . . 3 Power . | . . . . . Propulsion . | . . . . . Utility 1 | . . . . 1 Weapon 2 | . . . . 2 Highest Loss Streak 2 | . . . . 2 To Critical Strikes . | . . . . . Average Slot Usage (%) 53 | . 54 57 57 51 Device 11 | . 12 14 14 10 Processor 13 | . 12 14 14 14 Ballistic Gun 27 | . 28 28 28 26 Naked Turns . | . . . . . Heaviest Build 3 | 2 3 3 3 3 Greatest Support 3 | 3 3 3 3 3 Greatest Overweight (x) . | . . . . . Average Overweight (x) . | . . . . . Largest Inventory Capacity 5 | 5 5 5 5 5 Average Capacity 5 | 5 5 5 5 5 Most Carried 5 | 3 5 5 5 5 Average Carried 4 | 1 4 5 4 4 Final Capacity 5 | 5 5 5 5 5 Final Carried 5 | 1 5 5 5 4 Class Distribution -------------------- 100% | Mutant Dominant Class ---------------- Mutant | -10/Materials Mutant | -10/Mines Mutant | -10/Exiles Mutant | -9/Mines Resources | -11 -10 -10 -10 -9 ----------- Run | Scr Mat Min Exi Min Matter Collected 244 | 220 20 . . 4 Remotely . | . . . . . Salvage Created 46 | . . . . 46 Parts 3 | . . . . 3 Haulers Intercepted . | . . . . . Recyclers Shooed . | . . . . . Parts Field Recycled . | . . . . . Retrieved Matter . | . . . . . Parts Self-Destructed . | . . . . . Prevented . | . . . . . Kills | -11 -10 -10 -10 -9 ------- Run | Scr Mat Min Exi Min Combat Hostiles Destroyed 1 | . . . . 1 Melee 1 | . . . . 1 Classes Destroyed 1 | . . . . 1 Grunt 1 | . . . . 1 Best Kill Streak 1 | . . . . 1 Combat Bots Only 1 | . . . . 1 Max Kills in Single Turn 1 | . . . . 1 Gunslinging . | . . . . . Exploded . | . . . . . Melee 1 | . . . . 1 Uniques/NPCs Destroyed . | . . . . . Combat | -11 -10 -10 -10 -9 -------- Run | Scr Mat Min Exi Min Damage Taken 552 | . 35 . . 517 Core 255 | . 6 . . 249 Absorbed by Shields . | . . . . . Core Remaining (%) 100 | 100 . . . . Volleys Fired . | . . . . . Largest . | . . . . . Hottest . | . . . . . Shots Fired . | . . . . . Gun . | . . . . . Cannon . | . . . . . Launcher . | . . . . . Special . | . . . . . Kinetic . | . . . . . Thermal . | . . . . . Explosive . | . . . . . Electromagnetic . | . . . . . Robot Hit Streak . | . . . . . Robot Miss Streak . | . . . . . Penetration Max . | . . . . . Secondary Targets . | . . . . . Shots Hit Robots . | . . . . . Core Hits 2 | . . . . 2 Critical Kills . | . . . . . Critical Parts Destroyed . | . . . . . Critical Strikes . | . . . . . Melee Attacks . | . . . . . Impact . | . . . . . Slashing . | . . . . . Piercing . | . . . . . Sneak Attacks . | . . . . . Combat Hostiles . | . . . . . Follow-up Attacks . | . . . . . Damage Inflicted 43 | . . . . 43 Guns . | . . . . . Cannons . | . . . . . Explosions . | . . . . . Melee . | . . . . . Ramming 43 | . . . . 43 Kinetic . | . . . . . Thermal . | . . . . . Explosive . | . . . . . Electromagnetic . | . . . . . Impact . | . . . . . Slashing . | . . . . . Piercing . | . . . . . Highest Corruption . | . . . . . Average Corruption . | . . . . . Corruption Purged . | . . . . . Corruption Blocked . | . . . . . Overload Shots . | . . . . . Overflow Damage . | . . . . . Projectiles . | . . . . . Explosions . | . . . . . Melee . | . . . . . Knockbacks . | . . . . . Impact . | . . . . . Kinetic . | . . . . . Secondary . | . . . . . Self-Inflicted Damage 21 | . . . . 21 Shots . | . . . . . Rammed 8 | . . . . 8 Targets Rammed 8 | . . . . 8 Kicked . | . . . . . Crushed . | . . . . . Highest Temperature . | . . . . . Average Temperature . | . . . . . Received Heat Transfer 120 | . . . . 120 Siege Activations . | . . . . . Robots Corrupted . | . . . . . Combat Hostiles . | . . . . . Parts Fried . | . . . . . Impact Corruptions . | . . . . . Robots Melted . | . . . . . Combat Hostiles . | . . . . . Parts Melted . | . . . . . Heat Transferred . | . . . . . Parts Sabotaged . | . . . . . Parts Stolen . | . . . . . Parts Stripped . | . . . . . Power Chain Reactions . | . . . . . Missiles Intercepted . | . . . . . Alert | -11 -10 -10 -10 -9 ------- Run | Scr Mat Min Exi Min Peak Influence 125 | . 123 47 . 125 Initial 47 | . . 47 . . Average 42 | . 16 47 . 60 Maximum Alert Level . | . . . . . Low Security (%) 100 | 100 100 100 . 100 Level 1 . | . . . . . Level 2 . | . . . . . Level 3 . | . . . . . Level 4 . | . . . . . Level 5 . | . . . . . High Security . | . . . . . Max Security . | . . . . . Squads Dispatched . | . . . . . Investigation . | . . . . . Extermination . | . . . . . Reinforcement . | . . . . . Assault . | . . . . . Garrison . | . . . . . Intercept . | . . . . . Searches Triggered . | . . . . . Construction Impeded . | . . . . . Haulers Reinforced . | . . . . . Active Scanning Responses . | . . . . . Cargo Convoy Interrupts . | . . . . . Stealth | -11 -10 -10 -10 -9 --------- Run | Scr Mat Min Exi Min Distress Signals 1 | . . . . 1 Communications Jammed . | . . . . . Distress Signals . | . . . . . Times Spotted 20 | . 6 . . 14 Peak Tracking Total 6 | . 4 . . 6 Tactical Retreats 5 | . 2 . . 3 Traps | -11 -10 -10 -10 -9 ------- Run | Scr Mat Min Exi Min Traps Triggered . | . . . . . Indirectly . | . . . . . Trap Hack Attempts . | . . . . . Triggered . | . . . . . Disarmed . | . . . . . Reprogrammed . | . . . . . Reused . | . . . . . Traps Extracted . | . . . . . Installed . | . . . . . Triggered . | . . . . . Machines | -11 -10 -10 -10 -9 ---------- Run | Scr Mat Min Exi Min Machines Disabled . | . . . . . Max in Single Turn . | . . . . . Machines Sabotaged . | . . . . . Garrisons Compromised . | . . . . . Overloaded Fab Kills . | . . . . . Hacking | -11 -10 -10 -10 -9 --------- Run | Scr Mat Min Exi Min Machines Accessed 5 | . 3 . 2 . Terminals 1 | . 1 . . . Fabricators . | . . . . . Repair Stations . | . . . . . Recycling Units 2 | . 2 . . . Scanalyzers . | . . . . . Garrison Access . | . . . . . Total Hacks 13 | . 9 . 4 . Successful 12 | . 8 . 4 . Failed 1 | . 1 . . . Catastrophic . | . . . . . Database Lockouts . | . . . . . Manual 6 | . 5 . 1 . Terminals 2 | . 2 . . . Fabricators . | . . . . . Repair Stations . | . . . . . Recycling Units 7 | . 7 . . . Scanalyzers . | . . . . . Garrison Access . | . . . . . Terminal Hacks 5 | . 1 . 4 . Record 3 | . . . 3 . Terminal Index 1 | . 1 . . . EX-Prototype ID Bank 1 | . . . 1 . Fabricator Hacks . | . . . . . Repair Station Hacks . | . . . . . Recycling Unit Hacks 2 | . 2 . . . Retrieve Components 2 | . 2 . . . Scanalyzer . | . . . . . Garrison Access Hacks . | . . . . . Unauthorized Hacks 5 | . 5 . . . Terminals 1 | . 1 . . . Operators 1 | . 1 . . . Fabricators . | . . . . . Repair Stations . | . . . . . Recycling Units 4 | . 4 . . . Monitor 2 | . 2 . . . Reject 2 | . 2 . . . Scanalyzers . | . . . . . Garrison Access . | . . . . . Data Cores Recovered . | . . . . . Used . | . . . . . Hacking Detections 1 | . 1 . . . Full Trace Events . | . . . . . Feedback Events . | . . . . . Feedback Blocked . | . . . . . Robot Schematics Acquired . | . . . . . Robots Built . | . . . . . Authchips . | . . . . . Time . | . . . . . Total Robot Build Rating . | . . . . . Part Schematics Acquired . | . . . . . Parts Built . | . . . . . Authchips . | . . . . . Time . | . . . . . Total Part Build Rating . | . . . . . Parts Repaired . | . . . . . Time . | . . . . . Parts Recycled . | . . . . . Recycled Matter . | . . . . . Retrieved Matter . | . . . . . Retrieved Components 2 | . 2 . . . Parts Scanalyzed . | . . . . . Part Schematics Acquired . | . . . . . Parts Damaged . | . . . . . Bothacking | -11 -10 -10 -10 -9 ------------ Run | Scr Mat Min Exi Min Used RIF Installer . | . . . . . Robots Hacked . | . . . . . Non-combat . | . . . . . Combat . | . . . . . Robot Hacks Applied . | . . . . . Relay Couplers Released . | . . . . . Fabnet Peak Effective % . | . . . . . Robots Rewired . | . . . . . Allies Hacked . | . . . . . Hacks Repelled . | . . . . . Allies | -11 -10 -10 -10 -9 -------- Run | Scr Mat Min Exi Min Total Allies . | . . . . . Largest Group . | . . . . . Highest-Rated Group . | . . . . . Highest-Rated Ally . | . . . . . Total Orders . | . . . . . Ally Attacks . | . . . . . Total Damage . | . . . . . Kills . | . . . . . Allies Corrupted . | . . . . . Allies Melted . | . . . . . Intel | -11 -10 -10 -10 -9 ------- Run | Scr Mat Min Exi Min Robot Analysis Total . | . . . . . Derelict Logs Recovered 1 | . . . . 1 Drone Launches . | . . . . . Drone Recoveries . | . . . . . Exploration | -11 -10 -10 -10 -9 ------------- Run | Scr Mat Min Exi Min Turns Passed 779 | 24 242 18 117 378 Spaces Moved 786 | 38 302 24 231 191 Core 786 | 38 302 24 231 191 Treads . | . . . . . Legs . | . . . . . Wheels . | . . . . . Hover . | . . . . . Flight . | . . . . . Fastest Speed 50 | 50 50 50 50 50 Average Speed 50 | 50 50 50 50 50 Slowest Speed 50 | 50 50 50 50 50 Overloaded Moves . | . . . . . Propulsion Burnouts . | . . . . . Robots Hopped . | . . . . . Cave-ins Triggered . | . . . . . Exploration Rate (%) 28 | 4 31 12 63 30 Regions Visited 4 Branch Regions 3 Pre-discovered Areas . | . . . . . Known Exits Taken . | . . . . . Unknown Exits Taken 4 | 1 1 1 1 . Scrap Searched 1 | . . . . 1 Spaces Dug . | . . . . . Terrain Destroyed . | . . . . . Melee . | . . . . . Projectile . | . . . . . AOE . | . . . . . Terrain Rammed . | . . . . . Walls Destroyed . | . . . . . Machines Disabled . | . . . . . Actions | -11 -10 -10 -10 -9 --------- Run | Scr Mat Min Exi Min Total 1168 | 42 392 29 232 473 Wait 361 | . 82 6 . 273 Move 782 | 37 301 23 230 191 Hop . | . . . . . Pick Up 10 | 3 6 . 1 . Fast Attach 1 | . 1 . . . Attach 4 | 2 1 . . 1 Detach . | . . . . . Swap . | . . . . . Drop 2 | . 1 . 1 . Fire . | . . . . . Melee . | . . . . . Ram 8 | . . . . 8 Kick . | . . . . . Crush . | . . . . . Escape Stasis . | . . . . . Rewire . | . . . . . Trap . | . . . . . Miscellaneous . | . . . . . Route ------- -11/Scrapyard -10/Materials -10/Mines -10/Exiles -9/Mines History --------- Turn | Location | Event 9 | -11/Scrapyard | Discovered new exit (range 15) 25 | -11/Scrapyard | Entered Materials 133 | -10/Materials | Discovered new exit (range 8) 267 | -10/Materials | Entered Mines 283 | -10/Mines | Deemed a non-threat by the Exiles lab entrance 283 | -10/Mines | Discovered new exit (range 5) 285 | -10/Mines | Entered Exiles 298 | -10/Exiles | Met 8R-AWN 306 | -10/Exiles | Met EX-HEX 316 | -10/Exiles | Build established: Mutant 322 | -10/Exiles | Met EX-BIN 327 | -10/Exiles | Aligned with FarCom system 328 | -10/Exiles | Given EX-Vault access code 344 | -10/Exiles | Opened EX-Vault 348 | -10/Exiles | Found Field Lobotomy Kit 363 | -10/Exiles | Warned to stay clear of 0b10 Research branches 378 | -10/Exiles | Met EX-DEC 395 | -10/Exiles | Discovered new exit (range 15) 402 | -10/Exiles | Left Exiles lab with Field Lobotomy Kit 402 | -10/Exiles | Entered Mines 424 | -9/Mines | Excavation squad dispatched 424 | -9/Mines | A large section of the Mines collapsed 424 | -9/Mines | Learned 2 Materials zone layouts 674 | -9/Mines | Excavation squad dispatched 736 | -9/Mines | Core integrity fell below 50% 760 | -9/Mines | Core integrity fell below 20% 780 | -9/Mines | Destroyed by S-10 Pest with Light Assault Rifle Last Messages --------------- 00736_ T-07 Excavator is excavating. 00739_ Slammed into R-06 Scavenger. 00739_ R-06 Scavenger sends out distress signal. 00741_ K-01 Serf cleans the Laser Drill. 00744_ Broken Lgt. Assault Rifle destroyed. 00746_ K-01 Serf cleans the Laser Drill. 00754_ Searching scrap... 00754_ Found Tractor Beam. 00754_ Found Med. Storage Unit. 00754_ Found 19 Matter. 00761_ Acquired 4 matter. 00764_ Slammed into S-10 Pest. 00764_ Visual Processing Unit broken. 00764_ Destabilizing: Short circuit. 00765_ Slammed into S-10 Pest. 00766_ T-07 Excavator is excavating. 00766_ Slammed into G-34 Mercenary. 00767_ G-34 Mercenary destroyed. 00768_ K-01 Serf cleans the Laser Drill. 00779_ Slammed into T-07 Excavator. Map ----- +----------------------------------------------------+ | ???????????????????# """ ## #?????????????????? | | ???????????????????# """ ## #?????????????????? | | ???????????????????# ## #?????????????????? | | ???????????????????# """ ## #?????????????????? | | ???????????????????# """ ## #?????????????????? | | ???????????????????# """ ## #?????????????????? | | ???????????????????# ## #?????????????????? | | ?????????########### """ ##!#?????????????????? | | ?????????# %%[ """ ##%#?????????????????? | | ?????????# %g* """ ##!#?????????????????? | | ?????????# ### ###! g #????????#######??? | | ???????????????# #?########g###????????# #??? | | ???????????????# #????????# #??????????# #??? | | ???????????????# #????????# #??????????# #??? | | ???????????????# #???###### ##?????????# #??? | | ???????????????# #???# #?????????# #??? | | ???????????????# #???# """#?????????# #??? | | ???????????????# #???# """#?????????#s #??? | | ??????????????? #???# """#?###?????### ###??? | | ???????????????###???# #?# ##?????# #????? | | ?????????????????????# #? ##????# #????? | | ?????????????????????####t####?? #?#### #????? | | ????????????????????????#s#????? ??# #????? | | ????????????????????????#s#????? ??# ####????? | | ????????????????????????#%#????? ??# #???????? | | ????????????????????????#@#????? #??# #???????? | | ????????????????????????#t#?????# #??# #???????? | | ????????????????????????#u#?????# #??# #???????? | | ????????????????????????# #?????# #??# #???????? | | ????????????????????????#u####### #??# #???????? | | ????????????????######??# #??# #???????? | | ????????????????? #??######### #??# #???????? | | ??????????????????#######???????# #### #???????? | | ?????????????????### ###?????# #???????? | | ????????????????## # " "##????# ######???????? | | ?????????????####### "###### #????????????? | | ?????????????# #"g % " %% #????????????? | | ?????????????# ### " " % #????????????? | | ?????????????????## " "" ########????????????? | | ??????????????????###"##"####???????????????????? | | ?????????????????#g ###### #????????????????????? | | ????????????????# g #???# #????????????????????? | | ????????????????# #???# #????????????????????? | | ??????????????? #???# ????????????????????? | | ??????????????#### ##???## ????????????????????? | | ?????????????????###??????? ???????????????????? | | ??????????????????????????? ???????????????????? | | ??????????????????????????? ???????????????????? | | ??????????????????????????? #??????????????????? | | ??????????????????????????? #??????????????????? | +----------------------------------------------------+ Best States ------------- Heat Dissipation 25 Energy Generation 5 Energy Capacity 100 Matter Stores 300 Matter Capacity 300 Sight Range 18 Terrain Scan Density 10 Evasion (%) 50 Item Schematics ----------------- None Robot Schematics ------------------ None Fabricated ------------ Nothing Alien Tech Used ----------------- None Achievements -------------- None Challenges ------------ None Game ------ Seed CarbideFocalTrap Manual? 0 Play Time 00:11:04 Cumulative 103.8 hours Start 2022.05.15 @ 15:33:38 End 2022.05.15 @ 15:42:50 Sessions 1 Manual Loads 0 Difficulty Rogue Special Mode None Game No. 141 Rogue 141 Adventurer 0 Explorer 0 Win Type - Total 1 Types 1/0/0/0/0/0/0/0/0 Lore% 58 Gallery% 55 Achievement% 48 Wizard Run 0 Options --------- ASCII 0 Keyboard 0 Movement Numpad Keybinds 0 Fullscreen 1 Font 18/X11Bold Map View 76x50 Tactical HUD 1 Map Filters NONE Filters NONE Steam X RUN: 9cf7d9e6-23ab-4c7d-a2d2-f6ca1bf68804